[Event "2026 European Womens Championship"]
[Site "Batumi, GE"]
[Date "2026.06.02"]
[Round "8"]
[White "Nomin-Erdene, Davaademberel"]
[Black "Chernyak, Viktoria"]
[Result "1-0"]
[Board "21"]
[TimeControl "5400+30"]
[WhiteFideId "4900782"]
[BlackFideId "24165956"]
[WhiteElo "2328"]
[BlackElo "2191"]
[WhiteTitle "IM"]
[BlackTitle "WGM"]
[WhiteClock "0:31:04"]
[BlackClock "0:29:37"]
[Variant "Standard"]

1. e4 {[%clk 1:29:48]}  c5 {[%clk 1:30:59]} 2. Nf3 {[%clk 1:29:40]}  Nc6 {[%clk 1:31:24]} 3. d4 {[%clk 1:30:04]}  cxd4 {[%clk 1:31:51]}
4. Nxd4 {[%clk 1:30:29]}  Qb6 {[%clk 1:32:14]} 5. Nb3 {[%clk 1:30:13]}  e6 {[%clk 1:32:31]} 6. Nc3 {[%clk 1:30:09]}  Qc7 {[%clk 1:32:53]}
7. Qe2 {[%clk 1:18:21]}  a6 {[%clk 1:33:06]} 8. g4 {[%clk 1:18:12]}  b5 {[%clk 1:31:31]} 9. Bg2 {[%clk 1:18:25]}  Bb7 {[%clk 1:31:20]}
10. a3 {[%clk 1:18:07]}  b4 {[%clk 1:22:47]} 11. axb4 {[%clk 1:13:35]}  Bxb4 {[%clk 1:22:30]} 12. O-O {[%clk 1:10:55]}  Nge7 {[%clk 1:13:04]}
13. f4 {[%clk 1:02:17]}  O-O {[%clk 1:04:06]} 14. Na2 {[%clk 0:54:22]}  a5 {[%clk 0:59:51]} 15. Nxb4 {[%clk 0:50:58]}  Nxb4 {[%clk 0:59:26]}
16. Rf2 {[%clk 0:50:58]}  Rfc8 {[%clk 0:58:09]} 17. Nd4 {[%clk 0:51:14]}  Ng6 {[%clk 0:49:06]} 18. Qd1 {[%clk 0:39:44]}  e5 {[%clk 0:37:32]}
19. fxe5 {[%clk 0:39:58]}  Qxe5 {[%clk 0:30:26]} 20. c3 {[%clk 0:37:28]}  Nc6 {[%clk 0:28:08]} 21. Nf5 {[%clk 0:27:36]}  Rf8 {[%clk 0:16:07]}
22. h4 {[%clk 0:25:31]}  Nge7 {[%clk 0:12:18]} 23. Bf4 {[%clk 0:15:03]}  Qe6 {[%clk 0:12:33]} 24. Rd2 {[%clk 0:15:16]}  Ng6 {[%clk 0:08:37]}
25. Bg3 {[%clk 0:14:19]}  Nge5 {[%clk 0:08:57]} 26. Rd6 {[%clk 0:13:48]}  Qe8 {[%clk 0:07:40]} 27. h5 {[%clk 0:07:04]}  Ba6 {[%clk 0:06:19]}
28. h6 {[%clk 0:05:31]}  g6 {[%clk 0:06:27]} 29. Ne3 {[%clk 0:05:46]}  Qe7 {[%clk 0:05:49]} 30. Bf4 {[%clk 0:04:35]}  Qh4 {[%clk 0:03:33]}
31. Nd5 {[%clk 0:00:33]}  Nd3 {[%clk 0:02:28]} 32. Nf6+ {[%clk 0:00:32]}  Kh8 {[%clk 0:02:57]} 33. Qf3 {[%clk 0:01:01]}  Nce5 {[%clk 0:02:04]}
34. Qg3 {[%clk 0:01:03]}  Qxg3 {[%clk 0:02:18]} 35. Bxg3 {[%clk 0:01:32]}  Bc4 {[%clk 0:01:31]} 36. Bf1 {[%clk 0:01:00]}  Ra7 {[%clk 0:01:20]}
37. Bxd3 {[%clk 0:00:48]}  Nxd3 {[%clk 0:01:41]} 38. b3 {[%clk 0:01:11]}  Ba6 {[%clk 0:01:17]} 39. Rxa5 {[%clk 0:01:39]}  Rfa8 {[%clk 0:01:44]}
40. Raxa6 {[%clk 0:01:32]}  Rxa6 {[%clk 0:02:08]} 41. Rxd3 {[%clk 0:01:58]}  Ra1+ {[%clk 0:01:59]} 42. Kg2 {[%clk 0:01:59]}  R8a2+ {[%clk 0:29:37]}
43. Bf2 {[%clk 0:31:04]} 1-0

[Event "2026 European Womens Championship"]
[Site "Batumi, GE"]
[Date "2026.06.02"]
[Round "8"]
[White "Rapport, Jovana"]
[Black "Osmak, Yuliia"]
[Result "1/2-1/2"]
[Board "22"]
[TimeControl "5400+30"]
[WhiteFideId "937266"]
[BlackFideId "14101602"]
[WhiteElo "2235"]
[BlackElo "2451"]
[WhiteTitle "WGM"]
[BlackTitle "IM"]
[WhiteClock "0:13:01"]
[BlackClock "0:13:05"]
[Variant "Standard"]

1. e4 {[%clk 1:30:56]}  c6 {[%clk 1:30:43]} 2. Nf3 {[%clk 1:31:15]}  d5 {[%clk 1:31:01]} 3. Nc3 {[%clk 1:31:39]}  Bg4 {[%clk 1:31:26]}
4. h3 {[%clk 1:32:05]}  Bxf3 {[%clk 1:31:51]} 5. Qxf3 {[%clk 1:32:31]}  e6 {[%clk 1:32:17]} 6. g3 {[%clk 1:32:27]}  Nd7 {[%clk 1:32:28]}
7. Bg2 {[%clk 1:32:24]}  d4 {[%clk 1:32:14]} 8. Ne2 {[%clk 1:31:52]}  Qb6 {[%clk 1:32:36]} 9. Qd3 {[%clk 1:25:02]}  e5 {[%clk 1:25:10]}
10. Qc4 {[%clk 1:18:08]}  Qb5 {[%clk 1:13:01]} 11. Qxb5 {[%clk 1:13:22]}  cxb5 {[%clk 1:11:10]} 12. a3 {[%clk 1:10:53]}  Rc8 {[%clk 1:05:32]}
13. Kd1 {[%clk 1:10:17]}  Ne7 {[%clk 0:45:24]} 14. d3 {[%clk 1:08:58]}  Nc6 {[%clk 0:45:40]} 15. h4 {[%clk 1:07:29]}  Nc5 {[%clk 0:45:11]}
16. Bh3 {[%clk 1:07:19]}  Rc7 {[%clk 0:45:09]} 17. f4 {[%clk 1:03:33]}  f6 {[%clk 0:45:25]} 18. b4 {[%clk 0:59:01]}  Na4 {[%clk 0:45:47]}
19. Be6 {[%clk 0:59:27]}  Nc3+ {[%clk 0:35:31]} 20. Nxc3 {[%clk 0:52:28]}  dxc3 {[%clk 0:35:59]} 21. Be3 {[%clk 0:52:51]}  Bd6 {[%clk 0:36:07]}
22. Ke2 {[%clk 0:45:44]}  Ke7 {[%clk 0:25:48]} 23. Bd5 {[%clk 0:45:34]}  Rf8 {[%clk 0:25:38]} 24. Rhb1 {[%clk 0:43:19]}  f5 {[%clk 0:25:07]}
25. fxe5 {[%clk 0:39:11]}  Bxe5 {[%clk 0:24:52]} 26. exf5 {[%clk 0:39:35]}  Rxf5 {[%clk 0:21:53]} 27. g4 {[%clk 0:40:02]}  Rf8 {[%clk 0:21:09]}
28. Rf1 {[%clk 0:37:48]}  Nd4+ {[%clk 0:18:54]} 29. Bxd4 {[%clk 0:33:12]}  Bxd4 {[%clk 0:19:18]} 30. Rxf8 {[%clk 0:33:31]}  Kxf8 {[%clk 0:19:47]}
31. Rf1+ {[%clk 0:33:43]}  Ke7 {[%clk 0:18:45]} 32. Rf4 {[%clk 0:32:33]}  Be5 {[%clk 0:18:31]} 33. Re4 {[%clk 0:31:49]}  Kd6 {[%clk 0:18:45]}
34. Bg8 {[%clk 0:32:14]}  h6 {[%clk 0:17:45]} 35. g5 {[%clk 0:26:26]}  Rc8 {[%clk 0:13:20]} 36. d4 {[%clk 0:25:10]}  Bg3 {[%clk 0:11:54]}
37. Bf7 {[%clk 0:25:19]}  hxg5 {[%clk 0:10:08]} 38. hxg5 {[%clk 0:25:34]}  Rc7 {[%clk 0:05:25]} 39. Be8 {[%clk 0:12:03]}  a6 {[%clk 0:04:09]}
40. Kd3 {[%clk 0:11:59]}  Re7 {[%clk 0:01:09]} 41. Bg6 {[%clk 0:10:48]}  Be1 {[%clk 0:00:32]} 42. Rg4 {[%clk 0:23:24]}  Bd2 {[%clk 0:25:32]}
43. Be4 {[%clk 0:23:46]}  Rc7 {[%clk 0:21:34]} 44. Rg1 {[%clk 0:23:46]}  b6 {[%clk 0:19:49]} 45. g6 {[%clk 0:24:07]}  Rc8 {[%clk 0:18:28]}
46. Rh1 {[%clk 0:18:08]}  Rf8 {[%clk 0:17:29]} 47. Rh5 {[%clk 0:16:22]}  Rf1 {[%clk 0:15:26]} 48. Bb7 {[%clk 0:13:55]}  Re1 {[%clk 0:14:13]}
49. Re5 {[%clk 0:12:37]}  Rxe5 {[%clk 0:13:24]} 50. dxe5+ {[%clk 0:13:01]}  Kxe5 {[%clk 0:13:05]} 1/2-1/2

[Event "2026 European Womens Championship"]
[Site "Batumi, GE"]
[Date "2026.06.02"]
[Round "8"]
[White "Javakhishvili, Lela"]
[Black "Orian, Noga"]
[Result "1-0"]
[Board "23"]
[TimeControl "5400+30"]
[WhiteFideId "13601458"]
[BlackFideId "2836475"]
[WhiteElo "2442"]
[BlackElo "2231"]
[WhiteTitle "IM"]
[BlackTitle "WIM"]
[WhiteClock "0:42:35"]
[BlackClock "0:26:59"]
[Variant "Standard"]

1. c4 {[%clk 1:30:57]}  e5 {[%clk 1:28:36]} 2. g3 {[%clk 1:31:13]}  Nf6 {[%clk 1:29:00]} 3. Bg2 {[%clk 1:31:27]}  c6 {[%clk 1:29:23]}
4. d4 {[%clk 1:31:04]}  Bb4+ {[%clk 1:29:49]} 5. Bd2 {[%clk 1:31:29]}  Bxd2+ {[%clk 1:30:08]} 6. Qxd2 {[%clk 1:31:49]}  d6 {[%clk 1:30:29]}
7. Nc3 {[%clk 1:31:59]}  O-O {[%clk 1:30:38]} 8. dxe5 {[%clk 1:31:55]}  dxe5 {[%clk 1:31:00]} 9. Qxd8 {[%clk 1:32:19]}  Rxd8 {[%clk 1:31:27]}
10. Nf3 {[%clk 1:32:42]}  Re8 {[%clk 1:30:01]} 11. b4 {[%clk 1:32:54]}  Na6 {[%clk 1:22:51]} 12. a3 {[%clk 1:30:22]}  Bg4 {[%clk 1:17:26]}
13. Nd2 {[%clk 1:30:14]}  Re7 {[%clk 1:06:12]} 14. Nb3 {[%clk 1:26:19]}  Rd8 {[%clk 1:01:00]} 15. O-O {[%clk 1:20:54]}  Kf8 {[%clk 0:53:39]}
16. Na5 {[%clk 1:14:46]}  Nb8 {[%clk 0:53:32]} 17. Rfc1 {[%clk 1:05:08]}  Rc8 {[%clk 0:48:27]} 18. c5 {[%clk 0:51:34]}  Be6 {[%clk 0:39:51]}
19. Na4 {[%clk 0:45:49]}  Rcc7 {[%clk 0:37:45]} 20. Rab1 {[%clk 0:45:19]}  Bd5 {[%clk 0:35:21]} 21. Bh3 {[%clk 0:42:37]}  Nbd7 {[%clk 0:28:20]}
22. Nc3 {[%clk 0:41:03]}  g6 {[%clk 0:21:47]} 23. Rb2 {[%clk 0:39:25]}  e4 {[%clk 0:20:17]} 24. Nd1 {[%clk 0:34:32]}  Ne5 {[%clk 0:19:18]}
25. Ne3 {[%clk 0:34:41]}  b6 {[%clk 0:17:44]} 26. cxb6 {[%clk 0:30:27]}  axb6 {[%clk 0:18:10]} 27. Nac4 {[%clk 0:30:50]}  Nxc4 {[%clk 0:15:50]}
28. Nxc4 {[%clk 0:31:17]}  b5 {[%clk 0:12:39]} 29. Na5 {[%clk 0:30:50]}  Nd7 {[%clk 0:12:26]} 30. Bxd7 {[%clk 0:27:31]}  Rexd7 {[%clk 0:12:36]}
31. Rbc2 {[%clk 0:26:28]}  Ra7 {[%clk 0:09:52]} 32. g4 {[%clk 0:24:54]}  h6 {[%clk 0:09:19]} 33. Rc5 {[%clk 0:24:48]}  Ra6 {[%clk 0:07:05]}
34. Kg2 {[%clk 0:21:11]}  Rd6 {[%clk 0:06:12]} 35. Kg3 {[%clk 0:20:35]}  Ke7 {[%clk 0:05:55]} 36. Kf4 {[%clk 0:17:42]}  Rf6+ {[%clk 0:05:11]}
37. Ke3 {[%clk 0:17:19]}  Kd6 {[%clk 0:02:14]} 38. R5c3 {[%clk 0:16:52]}  Ke5 {[%clk 0:01:41]} 39. Rd1 {[%clk 0:15:26]}  Ra7 {[%clk 0:00:59]}
40. Rc5 {[%clk 0:14:22]}  Kd6 {[%clk 0:26:59]} 41. Rxc6+ {[%clk 0:42:35]} 1-0

[Event "2026 European Womens Championship"]
[Site "Batumi, GE"]
[Date "2026.06.02"]
[Round "8"]
[White "Piddubna, Bozhena"]
[Black "Maltsevskaya, Aleksandra"]
[Result "1/2-1/2"]
[Board "24"]
[TimeControl "5400+30"]
[WhiteFideId "34109293"]
[BlackFideId "24174041"]
[WhiteElo "2235"]
[BlackElo "2390"]
[WhiteTitle "WIM"]
[BlackTitle "IM"]
[WhiteClock "0:05:21"]
[BlackClock "0:01:28"]
[Variant "Standard"]

1. d4 {[%clk 1:30:43]}  Nf6 {[%clk 1:30:52]} 2. c4 {[%clk 1:30:30]}  e6 {[%clk 1:31:14]} 3. g3 {[%clk 1:30:21]}  Bb4+ {[%clk 1:28:00]}
4. Nd2 {[%clk 1:30:09]}  c5 {[%clk 1:24:41]} 5. a3 {[%clk 1:29:09]}  Bxd2+ {[%clk 1:25:01]} 6. Qxd2 {[%clk 1:29:12]}  Nc6 {[%clk 1:20:49]}
7. Nf3 {[%clk 1:21:13]}  Ne4 {[%clk 1:16:31]} 8. Qd3 {[%clk 1:20:19]}  Qa5+ {[%clk 1:13:39]} 9. Nd2 {[%clk 1:18:04]}  d5 {[%clk 1:11:54]}
10. Bg2 {[%clk 1:12:18]}  O-O {[%clk 1:08:28]} 11. cxd5 {[%clk 0:59:04]}  exd5 {[%clk 1:08:48]} 12. O-O {[%clk 0:59:06]}  Nxd4 {[%clk 0:53:01]}
13. Nxe4 {[%clk 0:55:32]}  dxe4 {[%clk 0:53:23]} 14. Bxe4 {[%clk 0:55:31]}  Bg4 {[%clk 0:49:45]} 15. f3 {[%clk 0:50:16]}  Bh3 {[%clk 0:47:55]}
16. b4 {[%clk 0:33:27]}  Qa4 {[%clk 0:29:09]} 17. Re1 {[%clk 0:31:45]}  Rad8 {[%clk 0:28:07]} 18. Bg5 {[%clk 0:27:05]}  f6 {[%clk 0:22:17]}
19. Bf4 {[%clk 0:27:18]}  Be6 {[%clk 0:22:40]} 20. Bxh7+ {[%clk 0:21:13]}  Kh8 {[%clk 0:23:03]} 21. Bg6 {[%clk 0:21:19]}  c4 {[%clk 0:18:24]}
22. Qe4 {[%clk 0:15:14]}  Bf7 {[%clk 0:06:51]} 23. Bxf7 {[%clk 0:08:48]}  Rxf7 {[%clk 0:07:14]} 24. Rac1 {[%clk 0:09:11]}  b5 {[%clk 0:07:23]}
25. Be3 {[%clk 0:09:31]}  Rfd7 {[%clk 0:03:23]} 26. Kf2 {[%clk 0:03:55]}  Nb3 {[%clk 0:00:34]} 27. Rcd1 {[%clk 0:03:33]}  Rxd1 {[%clk 0:00:33]}
28. Rxd1 {[%clk 0:04:00]}  Rxd1 {[%clk 0:00:36]} 29. Qe8+ {[%clk 0:04:26]}  Kh7 {[%clk 0:01:02]} 30. Qh5+ {[%clk 0:04:53]}  Kg8 {[%clk 0:01:28]}
31. Qe8+ {[%clk 0:05:21]} 1/2-1/2

[Event "2026 European Womens Championship"]
[Site "Batumi, GE"]
[Date "2026.06.02"]
[Round "8"]
[White "Mammadzada, Gunay"]
[Black "Ibrahimova, Sabina"]
[Result "0-1"]
[Board "25"]
[TimeControl "5400+30"]
[WhiteFideId "13403729"]
[BlackFideId "13403893"]
[WhiteElo "2374"]
[BlackElo "2205"]
[WhiteTitle "IM"]
[BlackTitle "WIM"]
[WhiteClock "0:00:41"]
[BlackClock "0:02:04"]
[Variant "Standard"]

1. Nf3 {[%clk 1:28:06]}  d5 {[%clk 1:30:09]} 2. d4 {[%clk 1:27:17]}  Nf6 {[%clk 1:30:24]} 3. c4 {[%clk 1:27:38]}  e6 {[%clk 1:30:39]}
4. cxd5 {[%clk 1:27:19]}  exd5 {[%clk 1:29:25]} 5. Nc3 {[%clk 1:27:42]}  h6 {[%clk 1:28:10]} 6. Bf4 {[%clk 1:22:39]}  Bd6 {[%clk 1:25:55]}
7. Bxd6 {[%clk 1:22:46]}  Qxd6 {[%clk 1:26:20]} 8. e3 {[%clk 1:23:10]}  O-O {[%clk 1:22:16]} 9. Bd3 {[%clk 1:23:22]}  Bg4 {[%clk 1:06:49]}
10. O-O {[%clk 1:17:19]}  c5 {[%clk 1:02:09]} 11. Nb5 {[%clk 1:16:31]}  Qe7 {[%clk 1:01:37]} 12. dxc5 {[%clk 1:10:25]}  Na6 {[%clk 0:57:56]}
13. h3 {[%clk 1:06:02]}  Bd7 {[%clk 0:55:48]} 14. Nc3 {[%clk 1:03:50]}  Nxc5 {[%clk 0:55:17]} 15. Bc2 {[%clk 1:03:45]}  Rad8 {[%clk 0:50:41]}
16. Nd4 {[%clk 1:01:47]}  Nce4 {[%clk 0:48:23]} 17. Nce2 {[%clk 0:58:10]}  Rfe8 {[%clk 0:41:31]} 18. Nf4 {[%clk 0:49:29]}  Rc8 {[%clk 0:37:56]}
19. Bb3 {[%clk 0:47:29]}  Be6 {[%clk 0:32:19]} 20. a3 {[%clk 0:44:25]}  a6 {[%clk 0:30:08]} 21. Re1 {[%clk 0:41:58]}  Qd6 {[%clk 0:28:22]}
22. Qe2 {[%clk 0:31:04]}  Qb6 {[%clk 0:27:41]} 23. Red1 {[%clk 0:29:31]}  Nd6 {[%clk 0:26:01]} 24. Bc2 {[%clk 0:26:49]}  Nde4 {[%clk 0:24:44]}
25. Rab1 {[%clk 0:25:49]}  Rc7 {[%clk 0:23:24]} 26. f3 {[%clk 0:15:31]}  Nc5 {[%clk 0:18:00]} 27. b4 {[%clk 0:13:55]}  Ncd7 {[%clk 0:18:23]}
28. Kh1 {[%clk 0:11:45]}  Nf8 {[%clk 0:12:48]} 29. Bb3 {[%clk 0:09:42]}  Rc3 {[%clk 0:05:47]} 30. Qd2 {[%clk 0:08:51]}  Rec8 {[%clk 0:04:34]}
31. Re1 {[%clk 0:07:48]}  R3c7 {[%clk 0:01:07]} 32. Rbd1 {[%clk 0:06:42]}  Rd7 {[%clk 0:00:45]} 33. Qb2 {[%clk 0:05:30]}  Rcd8 {[%clk 0:00:48]}
34. Nd3 {[%clk 0:03:37]}  Rd6 {[%clk 0:00:47]} 35. Nc5 {[%clk 0:02:33]}  Bc8 {[%clk 0:01:07]} 36. e4 {[%clk 0:02:33]}  dxe4 {[%clk 0:01:18]}
37. fxe4 {[%clk 0:03:00]}  Nh5 {[%clk 0:01:04]} 38. e5 {[%clk 0:03:00]}  Rg6 {[%clk 0:01:13]} 39. Qf2 {[%clk 0:00:59]}  Ne6 {[%clk 0:00:41]}
40. Nf5 {[%clk 0:00:37]}  Re8 {[%clk 0:00:38]} 41. Ba4 {[%clk 0:26:46]}  Nef4 {[%clk 0:27:10]} 42. Bxe8 {[%clk 0:10:43]}  Rxg2 {[%clk 0:22:36]}
43. Qxg2 {[%clk 0:07:36]}  Nxg2 {[%clk 0:22:28]} 44. Ne7+ {[%clk 0:08:03]}  Kh7 {[%clk 0:13:28]} 45. Rd6 {[%clk 0:07:32]}  Qc7 {[%clk 0:15:04]}
46. Nd5 {[%clk 0:07:14]}  Qb8 {[%clk 0:15:05]} 47. Bxf7 {[%clk 0:04:05]}  Ngf4 {[%clk 0:07:19]} 48. Rd8 {[%clk 0:01:02]}  g5 {[%clk 0:03:44]}
49. Nxf4 {[%clk 0:00:42]}  Nxf4 {[%clk 0:03:47]} 50. Be6 {[%clk 0:00:43]}  Nxe6 {[%clk 0:02:24]} 51. Nxe6 {[%clk 0:01:11]}  b5 {[%clk 0:02:21]}
52. Kh2 {[%clk 0:00:33]}  Qb6 {[%clk 0:02:08]} 53. Rc1 {[%clk 0:00:41]}  Qf2+ {[%clk 0:02:04]} 0-1

[Event "2026 European Womens Championship"]
[Site "Batumi, GE"]
[Date "2026.06.02"]
[Round "8"]
[White "Kubicka, Anna"]
[Black "Sivanandan, Bodhana"]
[Result "1-0"]
[Board "26"]
[TimeControl "5400+30"]
[WhiteFideId "1152254"]
[BlackFideId "497592"]
[WhiteElo "2226"]
[BlackElo "2374"]
[WhiteTitle "WIM"]
[BlackTitle "FM"]
[WhiteClock "0:05:53"]
[BlackClock "0:08:15"]
[Variant "Standard"]

1. e4 {[%clk 1:30:57]}  e5 {[%clk 1:25:31]} 2. Nf3 {[%clk 1:31:10]}  Nf6 {[%clk 1:25:35]} 3. Nxe5 {[%clk 1:31:18]}  d6 {[%clk 1:25:51]}
4. Nf3 {[%clk 1:31:36]}  Nxe4 {[%clk 1:25:46]} 5. d4 {[%clk 1:31:51]}  d5 {[%clk 1:25:40]} 6. Bd3 {[%clk 1:32:09]}  Bd6 {[%clk 1:25:37]}
7. O-O {[%clk 1:32:18]}  O-O {[%clk 1:25:36]} 8. c4 {[%clk 1:32:39]}  c6 {[%clk 1:25:29]} 9. Qc2 {[%clk 1:32:37]}  Bf5 {[%clk 1:23:17]}
10. Nc3 {[%clk 1:28:29]}  Re8 {[%clk 1:20:48]} 11. Re1 {[%clk 1:20:34]}  Na6 {[%clk 1:11:34]} 12. a3 {[%clk 1:18:31]}  Qd7 {[%clk 1:01:32]}
13. Be3 {[%clk 1:06:20]}  Nc7 {[%clk 0:59:47]} 14. c5 {[%clk 0:56:31]}  Bf8 {[%clk 0:57:41]} 15. Ne5 {[%clk 0:51:56]}  Qe6 {[%clk 0:43:00]}
16. f3 {[%clk 0:44:38]}  f6 {[%clk 0:42:03]} 17. fxe4 {[%clk 0:37:25]}  dxe4 {[%clk 0:41:59]} 18. Bc4 {[%clk 0:36:56]}  Nd5 {[%clk 0:42:03]}
19. g4 {[%clk 0:36:30]}  Bxg4 {[%clk 0:36:56]} 20. Qxe4 {[%clk 0:15:54]}  Bf5 {[%clk 0:29:56]} 21. Qg2 {[%clk 0:11:30]}  Rad8 {[%clk 0:27:59]}
22. Nf3 {[%clk 0:11:09]}  Qf7 {[%clk 0:24:51]} 23. Bf2 {[%clk 0:09:54]}  Be6 {[%clk 0:23:26]} 24. Nxd5 {[%clk 0:09:47]}  Bxd5 {[%clk 0:23:29]}
25. Bxd5 {[%clk 0:09:56]}  Qxd5 {[%clk 0:22:39]} 26. Rxe8 {[%clk 0:10:02]}  Rxe8 {[%clk 0:22:59]} 27. Re1 {[%clk 0:10:05]}  Rd8 {[%clk 0:19:53]}
28. Nh4 {[%clk 0:05:58]}  Qxg2+ {[%clk 0:13:55]} 29. Nxg2 {[%clk 0:05:37]}  Kf7 {[%clk 0:14:05]} 30. Nf4 {[%clk 0:05:39]}  Rd7 {[%clk 0:13:06]}
31. d5 {[%clk 0:04:07]}  g5 {[%clk 0:09:17]} 32. dxc6 {[%clk 0:04:16]}  bxc6 {[%clk 0:09:41]} 33. Ne6 {[%clk 0:04:15]}  Be7 {[%clk 0:08:34]}
34. b4 {[%clk 0:04:42]}  Rd3 {[%clk 0:07:02]} 35. Nd4 {[%clk 0:05:02]}  Rxa3 {[%clk 0:07:01]} 36. Nxc6 {[%clk 0:05:27]}  Bf8 {[%clk 0:05:48]}
37. Nd8+ {[%clk 0:05:14]}  Kg6 {[%clk 0:06:53]} 38. Re8 {[%clk 0:04:54]}  Bg7 {[%clk 0:06:35]} 39. c6 {[%clk 0:04:59]}  Rc3 {[%clk 0:06:31]}
40. Bc5 {[%clk 0:05:12]}  f5 {[%clk 0:06:47]} 41. c7 {[%clk 0:04:49]}  Bd4+ {[%clk 0:06:28]} 42. Kf1 {[%clk 0:03:09]}  Rc1+ {[%clk 0:05:57]}
43. Ke2 {[%clk 0:03:01]}  Bc3 {[%clk 0:05:19]} 44. c8=Q {[%clk 0:02:53]}  Re1+ {[%clk 0:05:34]} 45. Kd3 {[%clk 0:03:19]}  Rxe8 {[%clk 0:05:54]}
46. Qc6+ {[%clk 0:03:42]}  Bf6 {[%clk 0:05:58]} 47. Qxe8+ {[%clk 0:04:06]}  Kh6 {[%clk 0:06:20]} 48. Bf8+ {[%clk 0:04:15]}  Bg7 {[%clk 0:06:42]}
49. Bxg7+ {[%clk 0:04:31]}  Kxg7 {[%clk 0:07:05]} 50. Qf7+ {[%clk 0:04:52]}  Kh6 {[%clk 0:07:27]} 51. Ne6 {[%clk 0:05:15]}  g4 {[%clk 0:07:51]}
52. Qf6+ {[%clk 0:05:29]}  Kh5 {[%clk 0:08:15]} 53. Ng7# {[%clk 0:05:53]} 1-0

[Event "2026 European Womens Championship"]
[Site "Batumi, GE"]
[Date "2026.06.02"]
[Round "8"]
[White "Siekanska, Maria"]
[Black "Brunello, Marina"]
[Result "1-0"]
[Board "27"]
[TimeControl "5400+30"]
[WhiteFideId "21852650"]
[BlackFideId "822590"]
[WhiteElo "2203"]
[BlackElo "2346"]
[WhiteTitle "WIM"]
[BlackTitle "IM"]
[WhiteClock "0:07:08"]
[BlackClock "0:06:07"]
[Variant "Standard"]

1. d4 {[%clk 1:30:59]}  d5 {[%clk 1:30:51]} 2. c4 {[%clk 1:31:22]}  e6 {[%clk 1:31:17]} 3. Nf3 {[%clk 1:31:47]}  Nf6 {[%clk 1:31:24]}
4. g3 {[%clk 1:32:10]}  h6 {[%clk 1:31:47]} 5. Bg2 {[%clk 1:32:35]}  Bd6 {[%clk 1:32:07]} 6. O-O {[%clk 1:32:57]}  O-O {[%clk 1:32:25]}
7. b3 {[%clk 1:33:18]}  a5 {[%clk 1:25:27]} 8. Bb2 {[%clk 1:33:12]}  c6 {[%clk 1:24:58]} 9. Nc3 {[%clk 1:29:28]}  Nbd7 {[%clk 1:18:47]}
10. Qc2 {[%clk 1:27:07]}  Re8 {[%clk 1:16:49]} 11. Rfd1 {[%clk 1:19:13]}  Rb8 {[%clk 1:12:14]} 12. e4 {[%clk 1:08:45]}  Nxe4 {[%clk 1:08:56]}
13. Nxe4 {[%clk 1:09:07]}  dxe4 {[%clk 1:09:23]} 14. Qxe4 {[%clk 1:09:18]}  Qe7 {[%clk 1:08:06]} 15. Ne5 {[%clk 0:57:15]}  Ra8 {[%clk 1:08:02]}
16. Rac1 {[%clk 0:54:39]}  Nf6 {[%clk 1:01:50]} 17. Qc2 {[%clk 0:52:38]}  Rd8 {[%clk 1:01:01]} 18. Nd3 {[%clk 0:47:21]}  Bc7 {[%clk 0:54:55]}
19. a3 {[%clk 0:45:57]}  Bd6 {[%clk 0:52:55]} 20. Qc3 {[%clk 0:42:06]}  Bd7 {[%clk 0:50:30]} 21. b4 {[%clk 0:40:10]}  axb4 {[%clk 0:49:10]}
22. axb4 {[%clk 0:40:34]}  Be8 {[%clk 0:44:18]} 23. Ra1 {[%clk 0:38:57]}  Rdc8 {[%clk 0:33:57]} 24. Qb3 {[%clk 0:30:18]}  Qd8 {[%clk 0:31:16]}
25. b5 {[%clk 0:29:02]}  Rxa1 {[%clk 0:28:50]} 26. Rxa1 {[%clk 0:29:08]}  b6 {[%clk 0:23:43]} 27. bxc6 {[%clk 0:22:47]}  Bxc6 {[%clk 0:23:12]}
28. d5 {[%clk 0:22:22]}  exd5 {[%clk 0:20:26]} 29. cxd5 {[%clk 0:22:47]}  Bb7 {[%clk 0:20:53]} 30. Ra7 {[%clk 0:20:12]}  Rb8 {[%clk 0:16:43]}
31. Ne5 {[%clk 0:15:02]}  Qe7 {[%clk 0:08:35]} 32. Nc6 {[%clk 0:14:45]}  Qe1+ {[%clk 0:08:49]} 33. Bf1 {[%clk 0:15:10]}  Bc5 {[%clk 0:07:14]}
34. Qf3 {[%clk 0:10:13]}  Ng4 {[%clk 0:04:18]} 35. Ra1 {[%clk 0:09:40]}  Qxf2+ {[%clk 0:03:10]} 36. Qxf2 {[%clk 0:10:04]}  Bxf2+ {[%clk 0:03:04]}
37. Kg2 {[%clk 0:10:23]}  Bc5 {[%clk 0:02:11]} 38. Ba6 {[%clk 0:05:07]}  Re8 {[%clk 0:01:07]} 39. Bxb7 {[%clk 0:04:38]}  Ne3+ {[%clk 0:00:46]}
40. Kf3 {[%clk 0:03:47]}  Nxd5 {[%clk 0:01:14]} 41. Ra8 {[%clk 0:01:17]}  Rxa8 {[%clk 0:01:40]} 42. Bxa8 {[%clk 0:01:43]}  b5 {[%clk 0:30:07]}
43. Ne5 {[%clk 0:27:18]}  Nb6 {[%clk 0:26:22]} 44. Bc6 {[%clk 0:27:24]}  b4 {[%clk 0:26:35]} 45. Ke4 {[%clk 0:22:23]}  b3 {[%clk 0:23:59]}
46. Nd7 {[%clk 0:19:42]}  Nxd7 {[%clk 0:23:43]} 47. Bxd7 {[%clk 0:20:07]}  Bg1 {[%clk 0:23:40]} 48. h3 {[%clk 0:20:10]}  Bf2 {[%clk 0:20:34]}
49. Kf3 {[%clk 0:19:49]}  Bc5 {[%clk 0:20:59]} 50. Ba4 {[%clk 0:20:04]}  f6 {[%clk 0:21:14]} 51. Bxb3+ {[%clk 0:20:25]}  Kh8 {[%clk 0:21:40]}
52. Bc3 {[%clk 0:20:13]}  Bd6 {[%clk 0:21:55]} 53. Be1 {[%clk 0:20:14]}  Kh7 {[%clk 0:22:16]} 54. Ke4 {[%clk 0:19:49]}  g6 {[%clk 0:17:37]}
55. Kd5 {[%clk 0:19:58]}  Be5 {[%clk 0:17:21]} 56. Ke6 {[%clk 0:20:20]}  Kg7 {[%clk 0:17:49]} 57. Bc2 {[%clk 0:17:28]}  Bd4 {[%clk 0:16:53]}
58. Bb4 {[%clk 0:17:06]}  Be5 {[%clk 0:17:09]} 59. Bd6 {[%clk 0:17:20]}  Bc3 {[%clk 0:17:37]} 60. Ke7 {[%clk 0:17:06]}  Bd4 {[%clk 0:16:19]}
61. Ke8 {[%clk 0:16:16]}  f5 {[%clk 0:15:41]} 62. Ke7 {[%clk 0:16:13]}  Kh7 {[%clk 0:15:34]} 63. Ke6 {[%clk 0:16:14]}  Bc3 {[%clk 0:15:35]}
64. Be5 {[%clk 0:16:34]}  Be1 {[%clk 0:15:59]} 65. Kf7 {[%clk 0:16:47]}  h5 {[%clk 0:16:14]} 66. Bb3 {[%clk 0:14:52]}  Ba5 {[%clk 0:11:06]}
67. Ba4 {[%clk 0:11:19]}  Bb6 {[%clk 0:11:17]} 68. Bc2 {[%clk 0:10:12]}  Bf2 {[%clk 0:10:33]} 69. Ba4 {[%clk 0:06:20]}  Bb6 {[%clk 0:10:58]}
70. Bg7 {[%clk 0:06:24]}  Bf2 {[%clk 0:06:00]} 71. g4 {[%clk 0:06:39]}  hxg4 {[%clk 0:05:40]} 72. hxg4 {[%clk 0:07:04]}  Be3 {[%clk 0:06:07]}
73. gxf5 {[%clk 0:07:08]} 1-0